bitfinex-derivatives/quotes_ETHF0:USTF0_20250606
["timestamp","ask_amount","ask_price","bid_price","bid_amount"]
[1749208823517,0.80231,2491.6,2491.5,0.8023]
[1749208823711,0.80229,2491.7,2491.6,0.80228]
[1749208824116,0.80225,2491.8,2491.7,0.80224]
[1749208824718,0.80223,2491.8,2491.7,0.80224]
[1749208825012,0.80226,2491.7,2491.6,3.2078]
[1749208825216,0.80226,2491.7,2491.6,4.01009]
[1749208825817,1.437,2491.9,2491.8,0.80223]
[1749208826112,0.80226,2491.8,2491.7,0.80225]
[1749208826316,0.80221,2491.9,2491.8,0.80223]
[1749208826914,0.80222,2491.9,2491.8,0.8022]
[1749208828115,0.80225,2491.8,2491.7,0.80224]
[1749208829028,0.00598458,2492.0,2491.7,3.2078]
[1749208829217,0.80223,2491.8,2491.7,4.01005]
[1749208830315,0.80229,2491.6,2491.5,0.00602156]
[1749208830521,7.02561,2491.8,2491.5,0.00602156]
[1749208830522,5.02,2491.8,2491.5,0.00602156]
[1749208830818,0.00598458,2492.0,2491.5,5.21963156]
[1749208831021,0.80223,2491.9,2491.8,0.80221]
[1749208833016,0.80223,2491.9,2491.8,4.01001]
[1749208835525,0.80223,2491.9,2491.8,3.2078]
[1749208836331,0.00598458,2492.0,2491.9,0.8022]
[1749208836624,0.00598458,2492.0,2491.9,2.0632]
[1749208837727,0.00598458,2492.0,2491.9,7.0632]
[1749208837926,3.2078,2492.9,2492.0,2.00543]
[1749208838224,0.80175,2493.3,2492.9,0.80188]
[1749208838525,0.80188,2492.9,2492.8,3.2078]
[1749208838928,0.8019,2492.9,2492.8,0.80191]
[1749208839222,0.20732709,2493.4,2492.7,3.2078]
[1749208839422,0.86032709,2493.4,2493.1,3.2078]
[1749208839725,0.20732709,2493.4,2493.1,3.2078]
[1749208839922,0.20732709,2493.4,2493.3,0.80175]
[1749208840123,0.20732709,2493.4,2493.1,3.2078]
[1749208840422,0.20732709,2493.4,2493.3,0.80175]
[1749208840624,1.00906709,2493.4,2493.1,3.2078]
[1749208840931,0.80178,2493.2,2493.1,3.2078]
[1749208841226,1.46197,2493.3,2493.1,4.00962]
[1749208841427,0.6602,2493.3,2493.2,0.80178]
[1749208841624,1.00906709,2493.4,2493.1,3.2078]
[1749208841625,0.20732709,2493.4,2493.3,0.80175]
[1749208844231,0.20732709,2493.4,2493.3,2.12465]
[1749208844927,0.80161,2493.8,2493.6,0.80165]
[1749208845120,3.2078,2494.1,2493.7,0.6466]
[1749208845325,0.6569,2494.4,2493.7,0.6466]
[1749208845520,0.80155,2494.0,2493.7,0.6466]
[1749208845725,0.80156,2493.9,2493.7,0.6466]
[1749208845924,3.27592,2494.3,2493.7,0.6466]
[1749208846125,0.88356344,2494.2,2493.7,0.6466]
[1749208846330,0.80158,2493.9,2493.7,0.6466]
[1749208846526,1.2723,2494.1,2493.7,0.6466]
[1749208846727,0.80159,2493.8,2493.7,0.6466]
[1749208846932,0.80162,2493.7,2493.6,3.2078]
[1749208847333,0.80162,2493.7,2493.6,4.00946]
[1749208847530,0.80162,2493.7,2493.6,3.2078]
[1749208847723,3.8696,2494.0,2493.6,3.2078]
[1749208847932,2.0311,2494.0,2493.6,3.2078]
[1749208848128,0.80162,2493.7,2493.6,3.2078]
[1749208848938,3.21269937,2495.3,2493.6,32.4708]
[1749208849141,1.46974,2494.3,2494.2,0.00602156]
[1749208849635,7.35335033,2494.3,2494.2,0.00602156]
[1749208849933,7.53723637,2494.3,2494.2,0.00602156]
[1749208850135,8.91053637,2494.3,2494.2,0.00602156]
[1749208851436,8.02704,2494.3,2494.2,0.00602156]
[1749208851937,13.02704,2494.3,2494.2,0.00602156]
[1749208852139,13.90984587,2494.3,2494.2,0.00602156]
[1749208852639,13.02704,2494.3,2494.2,0.00602156]
[1749208853131,8.02704,2494.3,2494.2,0.00602156]
[1749208853329,13.90954868,2494.3,2494.2,0.00602156]
[1749208853934,0.80159,2493.8,2493.7,3.2078]
[1749208854235,5.184,2493.9,2493.5,0.80167]
[1749208854533,0.80164,2493.7,2493.6,3.2078]
[1749208854728,0.80165,2493.7,2493.6,3.2078]
[1749208854929,1.49345,2493.7,2493.6,3.2078]
[1749208855532,2.77485,2493.7,2493.6,3.2078]
[1749208855728,6.9732,2493.7,2493.3,3.2078]
[1749208855936,6.9732,2493.7,2492.8,2.00475]
[1749208855937,22.5038,2493.6,2493.0,0.6795]
[1749208856134,0.80176,2493.3,2493.1,0.80179]
[1749208856434,3.2078,2493.6,2493.5,0.80169]
[1749208856629,3.2078,2493.6,2493.0,0.6795]
[1749208856630,3.2078,2493.6,2493.3,0.80775156]
[1749208856825,4.5452,2493.6,2493.3,0.00602156]
[1749208857026,0.80172,2493.4,2493.3,0.00602156]
[1749208858131,2.13912,2493.4,2493.3,0.00602156]
[1749208858331,6.3374,2493.4,2492.6,3.2078]
[1749208858535,6.67448,2493.3,2492.9,3.2078]
[1749208858734,1.49047,2493.3,2493.2,0.80178]
[1749208859037,0.80178,2493.2,2493.1,0.8018]
[1749208859235,5.8727,2493.3,2492.5,2.00503]
[1749208859435,0.8018,2493.2,2492.7,2.01082156]
[1749208859735,0.80178,2493.2,2493.0,0.80183]
[1749208859935,5.8727,2493.3,2492.8,0.8019]
[1749208860136,0.80188,2492.9,2492.8,0.8019]
[1749208860337,3.2078,2493.2,2492.8,0.8019]
[1749208860338,0.80187,2493.0,2492.8,0.80188]
[1749208860539,0.80191,2492.8,2492.7,0.00602156]
[1749208861232,5.98591,2492.8,2492.7,0.00602156]
[1749208861833,6.87176813,2492.8,2492.7,0.00602156]
[1749208862136,10.98591,2492.8,2492.7,0.00602156]
[1749208862330,0.80214,2492.1,2491.8,3.8906]
[1749208862534,0.80207,2492.4,2491.8,5.89615]
[1749208862739,0.80207,2492.4,2492.2,0.80209]
[1749208862932,0.80204,2492.4,2492.3,0.80205]
[1749208863133,5.184,2492.5,2492.1,3.2078]
[1749208863337,0.80207,2492.3,2492.2,0.6342]
[1749208863740,0.00602156,2492.5,2492.2,0.6342]
[1749208864040,0.80204,2492.4,2492.2,1.43628]
[1749208864235,5.19002156,2492.5,2492.2,0.6342]
[1749208864540,0.80206,2492.4,2492.2,0.6342]
[1749208864845,0.80206,2492.4,2492.2,1.43629]
[1749208865640,5.19102156,2492.5,2492.2,0.6342]
[1749208865842,0.80207,2492.3,2492.2,0.6342]
[1749208866042,0.80207,2492.3,2492.2,1.43631]
[1749208866240,5.19102156,2492.5,2492.2,1.43629]
[1749208866439,0.80206,2492.4,2492.2,1.43629]
[1749208866837,0.80207,2492.3,2492.2,1.43629]
[1749208867145,0.80207,2492.3,2492.2,0.6342]
[1749208867340,0.80211,2492.2,2492.1,0.00602156]
[1749208867537,8.01871,2492.2,2492.1,0.00602156]
[1749208867736,9.55075839,2492.2,2492.1,0.00602156]
[1749208868341,1.3349,2492.2,2492.1,0.00602156]
[1749208868545,25.99871,2492.2,2492.1,0.00602156]
[1749208868746,6.67671,2492.2,2492.1,0.00602156]
[1749208870541,2.00492,2492.7,2492.1,0.00602156]
[1749208870542,2.00501,2492.6,2492.1,0.00602156]
[1749208870749,0.80211,2492.2,2492.1,0.00602156]
[1749208870948,0.80211,2492.2,2492.1,3.21382156]
[1749208872142,0.80211,2492.2,2492.1,3.86632156]
[1749208873748,0.80211,2492.2,2492.1,0.65852156]
[1749208874252,4.00991,2492.2,2492.1,0.00602156]
[1749208874950,0.80211,2492.2,2492.1,0.00602156]
[1749208875551,4.00991,2492.2,2492.1,0.00602156]
[1749208876845,0.80211,2492.2,2492.1,0.00602156]
[1749208877253,0.80211,2492.2,2492.1,0.80816156]
[1749208877551,0.80211,2492.2,2492.1,1.32342156]
[1749208877747,0.80211,2492.2,2492.1,0.00602156]
[1749208878550,2.09151,2492.2,2492.1,0.00602156]
[1749208879454,0.08525047,2492.2,2492.1,0.00602156]
[1749208879651,0.88736047,2492.2,2492.1,0.00602156]
[1749208879850,4.09516047,2492.2,2492.1,0.00602156]
[1749208880353,4.00991,2492.2,2492.1,0.00602156]
[1749208882454,2.00365047,2492.2,2492.1,0.00602156]
[1749208882656,2.80576047,2492.2,2492.1,0.00602156]
[1749208883155,8.69076039,2492.2,2492.1,0.00602156]
[1749208883953,9.99706039,2492.2,2492.1,0.00602156]
[1749208884853,7.99340992,2492.2,2492.1,0.00602156]
[1749208885059,27.20440992,2492.2,2492.1,0.00602156]
[1749208885454,25.19815039,2492.2,2492.1,0.00602156]
[1749208885757,26.00026039,2492.2,2492.1,0.00602156]
[1749208887056,29.20806039,2492.2,2492.1,0.00602156]
[1749208888356,0.80227,2491.7,2491.6,3.2078]
[1749208888566,4.08001047,2491.8,2491.6,3.2078]
[1749208888864,0.80227,2491.7,2491.6,4.5564]
[1749208889768,4.08001047,2491.8,2491.6,4.5564]
[1749208889970,0.80223,2491.8,2491.7,2.09377]
[1749208890174,0.80223,2491.9,2491.8,0.80221]
[1749208890373,0.80223,2491.9,2491.8,2.76041]
[1749208891078,25.24823,2491.9,2491.8,2.76041]
[1749208891578,23.24197047,2491.9,2491.8,2.76041]
[1749208892473,0.80223,2491.9,2491.8,2.76041]
[1749208893782,0.80223,2491.9,2491.8,1.9582]
[1749208894081,0.80223,2491.9,2491.8,2.76043]
[1749208894776,23.22797047,2492.0,2491.8,2.76043]
[1749208894970,0.80223,2491.9,2491.8,5.96823]
[1749208895371,0.80223,2491.9,2491.8,5.166]
[1749208896183,0.80223,2491.9,2491.8,1.9582]
[1749208896579,2.00564,2491.8,2491.4,0.00602156]
[1749208896782,0.80233,2491.5,2491.4,1.33822156]
[1749208897473,1.68759472,2491.5,2491.4,1.33822156]
[1749208897678,4.96533519,2491.6,2491.4,1.33822156]
[1749208897983,0.80233,2491.5,2491.4,1.33822156]
[1749208900881,3.76140566,2491.6,2491.4,1.33822156]
[1749208901078,0.80233,2491.5,2491.4,1.33822156]
[1749208903187,19.88033,2491.5,2491.4,1.33822156]
[1749208903887,17.87407047,2491.5,2491.4,1.33822156]
[1749208904080,18.67640047,2491.5,2491.4,1.33822156]
[1749208904281,18.67640047,2491.5,2491.4,2.14058156]
[1749208904482,0.80233,2491.5,2491.4,1.33822156]
[1749208904684,19.87233,2491.5,2491.4,1.33822156]
[1749208904883,0.80233,2491.5,2491.4,1.33822156]
[1749208905183,24.234,2491.6,2491.4,1.33822156]
[1749208905490,19.8783,2491.6,2491.5,3.2078]
[1749208905885,19.8783,2491.6,2491.5,4.4858]
[1749208906891,17.87204047,2491.6,2491.5,4.4858]
[1749208907084,18.67434047,2491.6,2491.5,4.4858]
[1749208909690,19.56009661,2491.6,2491.5,4.4858]
[1749208909892,1.68805614,2491.6,2491.5,4.4858]
[1749208910090,24.68409661,2491.6,2491.5,4.4858]
[1749208910290,0.8023,2491.6,2491.5,4.4858]
[1749208910491,5.96029,2491.7,2491.6,0.8023]
[1749208910694,24.99829,2491.7,2491.6,0.8023]
[1749208910894,0.8023,2491.6,2491.5,5.28811]
[1749208911492,0.8023,2491.7,2491.6,0.80229]
[1749208911796,0.8023,2491.6,2491.5,4.4858]
[1749208912395,0.8023,2491.6,2491.5,5.28813]
[1749208913196,0.8023,2491.7,2491.6,0.80229]
[1749208913592,0.8023,2491.6,2491.5,4.01011]
[1749208913799,0.80229,2491.7,2491.6,0.80228]
[1749208914496,0.8023,2491.6,2491.5,4.01011]
[1749208914992,0.80228,2491.7,2491.6,0.80227]
[1749208915193,0.8023,2491.6,2491.5,4.01011]
[1749208915490,2.00537,2492.1,2491.5,3.2078]
[1749208915696,0.8023,2491.7,2491.6,0.80228]
[1749208916093,24.164,2492.0,2491.6,0.80228]
[1749208916291,0.8023,2491.7,2491.6,0.80228]
[1749208916487,0.8023,2491.6,2491.5,4.01011]
[1749208917000,0.80228,2491.7,2491.6,0.80228]
[1749208918699,0.80228,2491.7,2491.6,0.80227]
[1749208919097,24.154,2491.8,2491.6,0.80227]
[1749208919301,0.80228,2491.7,2491.6,0.80227]
[1749208919597,4.75628047,2491.8,2491.7,0.80227]
[1749208919798,0.80228,2491.7,2491.6,0.80228]
[1749208920000,5.96022,2491.9,2491.8,0.8022]
[1749208920601,0.80225,2491.8,2491.7,0.80224]
[1749208922301,5.96007,2492.3,2492.2,0.80207]
[1749208922495,0.80211,2492.2,2492.1,4.00992]
[1749208922811,0.8022,2492.0,2491.9,0.8022]
[1749208923193,2.00535,2492.1,2491.5,3.2078]
[1749208923500,0.80222,2491.9,2491.8,0.80222]
[1749208923701,0.80225,2491.8,2491.7,0.80225]
[1749208924003,24.92625,2491.8,2491.7,0.80225]
[1749208924305,24.92325,2491.8,2491.7,0.80225]
[1749208924599,0.80227,2491.7,2491.6,0.80227]
[1749208924804,24.121,2491.8,2491.5,3.2078]
[1749208925101,0.8023,2491.6,2491.5,4.0101]
[1749208925298,22.91704047,2491.8,2491.5,4.0101]
[1749208925497,0.8023,2491.6,2491.5,4.0101]
[1749208926800,0.8023,2491.6,2491.5,3.2078]
[1749208927004,0.80233,2491.5,2491.4,0.00602156]
[1749208927302,0.80246,2491.1,2491.0,1.43017]
[1749208927500,0.80244,2491.2,2491.1,0.80245]
[1749208927702,0.80244,2491.2,2491.1,4.01025]
[1749208927902,0.80244,2491.2,2491.1,3.2078]
[1749208928294,0.80244,2491.2,2490.7,2.26604882]
[1749208928295,0.80256,2490.9,2490.7,1.48008]
[1749208928601,0.80256,2490.8,2490.7,0.6775]
[1749208929406,5.96055,2490.9,2490.8,0.80256]
[1749208929605,5.158,2490.9,2490.8,0.80256]
[1749208930007,1.48442,2491.0,2490.9,0.80252]
[1749208930309,1.48439,2491.0,2490.9,0.80252]
[1749208930703,27.3148,2491.2,2491.0,0.80246]
[1749208930704,24.112,2491.1,2491.0,0.80246]
[1749208930908,24.91446,2491.1,2491.0,0.80246]
[1749208931404,22.90820047,2491.1,2491.0,0.80246]
[1749208931604,24.111,2491.1,2491.0,0.80249]
[1749208931998,24.111,2491.1,2491.0,2.12069]
[1749208932195,0.665,2491.3,2491.0,1.3182]
[1749208932395,0.6819,2491.5,2491.2,3.2078]
[1749208932705,18.947,2491.3,2491.2,4.01021]
[1749208933002,0.6819,2491.5,2491.4,0.80236]
[1749208933201,24.7839,2491.5,2491.4,0.80236]
[1749208933709,25.58323,2491.5,2491.4,0.80236]
[1749208934207,1.48423,2491.5,2491.4,0.80236]
[1749208934404,3.2078,2491.8,2491.5,0.80232]
[1749208934613,0.8023,2491.6,2491.5,0.80231]
[1749208934902,3.2078,2491.8,2491.3,3.32417]
[1749208935111,5.075,2491.6,2491.5,0.80233]
[1749208935408,5.075,2491.6,2491.5,2.07721]
[1749208935608,2.00544,2492.0,2491.5,1.2749]
[1749208935803,0.8023,2491.7,2491.5,2.0772]
[1749208936110,0.8023,2491.7,2491.6,1.4843]
[1749208936407,0.8023,2491.7,2491.6,0.682]
[1749208937408,3.87104047,2491.9,2491.6,0.682]
[1749208937609,18.915,2491.7,2491.6,0.682]
[1749208937811,19.71727,2491.7,2491.6,0.682]
[1749208939402,2.64304,2492.0,2491.6,0.682]
[1749208939601,24.77927,2491.7,2491.6,1.48428]
[1749208940415,24.77326,2491.7,2491.6,1.48428]
[1749208940709,22.76700047,2491.7,2491.6,1.48428]
[1749208940902,22.76200047,2491.7,2491.6,2.0181]
[1749208941102,22.76200047,2491.7,2491.6,0.682]
[1749208941299,22.76200047,2491.7,2491.6,1.4843]
[1749208941503,22.76200047,2491.7,2491.6,0.682]
[1749208942400,0.80233,2491.5,2491.4,3.2078]
[1749208942610,0.80243,2491.2,2491.1,1.9423]
[1749208942804,0.80243,2491.2,2491.1,2.74474]
[1749208943006,29.48916,2492.1,2491.5,2.00583]
[1749208943204,27.4838,2492.1,2491.5,5.2136]
[1749208943406,23.979,2492.0,2491.6,3.99565]
[1749208943611,22.77495047,2492.0,2491.8,0.80221]
[1749208943802,0.80221,2491.9,2491.8,0.80221]
[1749208944006,0.80219,2492.0,2491.9,0.80219]
[1749208944314,24.77819,2492.0,2491.9,0.80219]
[1749208944514,24.77919,2492.0,2491.9,0.80219]
[1749208944808,0.00602156,2492.2,2491.9,7.00547]
[1749208945005,0.00602156,2492.2,2492.1,4.00994]
[1749208946720,17.70785203,2492.3,2492.1,4.00994]
[1749208947412,17.70785203,2492.3,2492.2,0.8021]
[1749208947616,0.00602156,2492.5,2492.4,0.80202]
[1749208947810,24.77403156,2492.5,2492.3,0.80205]
[1749208948118,24.77403156,2492.5,2492.4,1.3661]
[1749208948511,0.80207,2492.3,2492.2,1.3095]
[1749208949511,24.75207,2492.3,2492.2,1.3095]
[1749208949717,22.74581047,2492.3,2492.2,1.3095]
[1749208949916,23.54788047,2492.3,2492.2,0.6625]
[1749208950711,23.54788047,2492.3,2492.2,1.4646]
[1749208951613,23.54788047,2492.3,2492.2,0.6625]
[1749208951814,23.54788047,2492.3,2492.2,1.4646]
[1749208952012,23.54788047,2492.3,2492.2,0.6625]
[1749208952820,21.54162094,2492.3,2492.2,0.6625]
[1749208954016,21.54162094,2492.3,2492.2,1.4646]
[1749208954216,21.54162094,2492.3,2492.2,0.6625]
[1749208954818,0.8021,2492.2,2492.1,3.2078]
[1749208955517,0.8021,2492.2,2492.1,4.00994]
[1749208955816,19.53539141,2492.3,2492.1,4.00994]
[1749208956011,0.8021,2492.2,2492.1,3.2078]
[1749208956222,0.8022,2491.9,2491.8,0.00602156]
[1749208956606,5.8762,2491.9,2491.8,0.00602156]
[1749208957116,5.8762,2491.9,2491.8,0.80825156]
[1749208957117,5.074,2491.9,2491.8,0.80825156]
[1749208958519,1.45039,2492.0,2491.9,0.8022]
[1749208958821,22.69193047,2492.0,2491.9,0.8022]
[1749208959017,23.49413047,2492.0,2491.9,0.8022]
[1749208959222,0.8022,2491.9,2491.8,0.80823156]
[1749208959422,22.69193047,2492.0,2491.8,0.80824156]
[1749208959622,23.891,2491.9,2491.8,0.80824156]
[1749208959817,24.6932,2491.9,2491.8,0.80824156]
[1749208960122,24.6932,2491.9,2491.8,0.00602156]
[1749208961011,23.891,2491.9,2491.8,0.80825156]
[1749208961316,5.87213,2492.2,2491.9,0.8022]
[1749208961317,0.80219,2492.0,2491.9,0.8022]
[1749208961623,24.68419,2492.0,2491.9,0.8022]
[1749208961919,22.67793047,2492.0,2491.9,0.8022]
[1749208962320,24.67718,2492.0,2491.9,0.8022]
[1749208962521,24.67718,2492.0,2491.9,2.1833]
[1749208962722,24.67418,2492.0,2491.9,2.1833]
[1749208962924,24.67417,2492.0,2491.9,2.1833]
[1749208963126,24.67217,2492.0,2491.9,1.3811]
[1749208963521,24.67217,2492.0,2491.9,2.1833]
[1749208964319,24.67217,2492.0,2491.9,1.3811]
[1749208964518,0.80217,2492.0,2491.9,2.1833]
[1749208964719,24.57917,2492.0,2491.9,2.8246]
[1749208965014,22.57291047,2492.0,2491.9,2.0224]
[1749208965220,23.37508047,2492.0,2491.9,2.0224]
[1749208965420,0.80217,2492.0,2491.9,2.0224]
[1749208965724,24.57317,2492.0,2491.9,2.0224]
[1749208966119,4.989,2492.0,2491.9,2.8246]
[1749208966419,0.80213,2492.2,2492.1,0.80214]
[1749208966618,24.56812,2492.2,2492.1,0.80211]
[1749208967224,24.56812,2492.2,2492.1,2.05641]
[1749208967626,24.57212,2492.2,2492.1,2.05641]
[1749208967925,22.56586047,2492.2,2492.1,2.05641]
[1749208968122,4.58696047,2492.2,2492.1,5.26421]
[1749208968334,0.8021,2492.2,2492.1,5.26421]
[1749208968623,0.00602156,2492.5,2492.1,4.4621]
[1749208968827,5.79107,2492.3,2492.2,1.3646]
[1749208969026,0.00602156,2492.5,2492.2,1.3646]
[1749208969230,24.56506,2492.4,2492.3,1.49086]
[1749208969441,5.79106,2492.4,2492.3,1.49087]
[1749208969725,23.759,2492.4,2492.3,1.49087]
[1749208970523,24.56104,2492.4,2492.3,1.49087]
[1749208970920,23.759,2492.4,2492.3,1.49087]
[1749208971131,22.55478047,2492.4,2492.3,1.49087]
[1749208972028,21.75274047,2492.4,2492.3,1.49087]
[1749208972227,22.55478047,2492.4,2492.3,1.49087]
[1749208972426,0.80204,2492.4,2492.3,1.49087]
[1749208972731,0.00602156,2492.5,2492.4,0.80204]
[1749208973032,0.80803156,2492.5,2492.4,2.07134]
[1749208973225,0.00602156,2492.5,2492.4,2.07134]
[1749208973928,4.989,2493.0,2492.5,2.00502]
[1749208974126,4.989,2493.0,2492.3,0.6888]
[1749208974127,0.80183,2493.1,2492.9,0.80185]
[1749208974328,4.989,2493.0,2492.9,0.80185]
[1749208974826,4.99502156,2493.2,2493.1,0.80181]
[1749208975027,4.99502156,2493.2,2493.1,4.00961]
[1749208977047,0.80175,2493.3,2493.2,0.80178]
[1749208977345,0.80177,2493.3,2493.1,4.0096]
[1749208977539,5.79074,2493.4,2493.2,0.80178]
[1749208978343,24.53074,2493.4,2493.2,0.80178]
[1749208978743,0.80177,2493.3,2493.1,4.01562156]
[1749208980147,22.52451047,2493.4,2493.1,4.01562156]
[1749208980444,0.80177,2493.3,2493.2,0.80178]
[1749208980643,0.80177,2493.3,2493.1,4.01561156]
[1749208980839,0.00602156,2493.5,2493.4,0.80172]
[1749208981437,0.80771156,2493.5,2493.2,0.662]
[1749208981642,0.80771156,2493.5,2493.4,0.80172]
[1749208982236,0.00602156,2493.5,2493.4,0.80172]
[1749208982445,0.00602156,2493.5,2493.4,4.00952]
[1749208982640,0.00602156,2493.5,2493.4,9.00952]
[1749208982840,0.80156,2493.9,2493.8,0.80157]
[1749208983246,22.52630047,2494.0,2493.7,4.0094]
[1749208983741,0.80158,2493.9,2493.8,0.80159]
[1749208984047,0.80158,2493.9,2493.7,4.0094]
[1749208984447,0.80159,2493.8,2493.7,3.2078]
[1749208984646,0.80159,2493.8,2493.7,0.6824]
[1749208985242,27.73795047,2494.0,2493.4,4.00949]
[1749208985442,2.0039,2493.9,2493.3,0.6824]
[1749208985642,0.8017,2493.5,2493.4,0.80172]
[1749208985843,0.80172,2493.4,2493.3,1.48413]
[1749208986045,0.80172,2493.4,2493.3,3.8902]
[1749208986445,0.80172,2493.4,2493.3,4.69195]
[1749208986645,0.80172,2493.4,2493.3,3.8902]
[1749208987245,4.58417047,2493.5,2493.4,0.80172]
[1749208987445,2.66219,2493.8,2493.3,4.5382]
[1749208987446,0.80168,2493.6,2493.3,4.5382]
[1749208987849,4.987,2493.7,2493.3,4.5382]
[1749208988047,4.987,2493.7,2493.6,4.00946]
[1749208988238,2.00367,2494.2,2493.6,3.2078]
[1749208988548,0.80153,2494.0,2493.9,0.80154]
[1749208989338,0.80155,2494.0,2493.8,0.6303]
[1749208989539,0.80155,2494.0,2493.9,0.80156]
[1749208990041,5.78854,2494.0,2493.9,0.80156]
[1749208990242,0.80154,2494.0,2493.9,1.3879]
[1749208991250,0.80154,2494.0,2493.9,2.18946]
[1749208991941,0.80154,2494.0,2493.9,1.3879]
[1749208992150,0.80154,2494.0,2493.9,2.18946]
[1749208992346,3.78128047,2494.1,2493.9,2.18946]
[1749208992547,0.80154,2494.0,2493.9,1.3879]
[1749208996043,5.0,2494.0,2493.3,3.2078]
[1749208996351,0.80172,2493.4,2493.3,0.6771]
[1749208996752,0.80172,2493.4,2493.1,0.00602156]
[1749208996753,0.80178,2493.2,2493.1,0.00602156]
[1749208998051,0.80194,2492.7,2492.6,3.2078]
[1749208998441,4.936,2492.8,2492.6,4.00977]
[1749208998442,3.73168047,2492.8,2492.6,4.00977]
[1749208998854,0.80194,2492.7,2492.6,3.2078]
[1749208999450,0.00602156,2492.9,2492.8,0.80191]
[1749208999653,4.94202156,2492.9,2492.8,0.80191]
[1749208999954,5.74390156,2492.9,2492.8,2.06161]
[1749209000149,0.00602156,2492.9,2492.8,2.06161]
[1749209000349,4.94202156,2492.9,2492.8,2.06161]
[1749209000752,0.00602156,2492.9,2492.8,2.06161]
[1749209001453,5.73776,2493.3,2493.1,0.80181]
[1749209001755,5.73775,2493.3,2493.2,1.2597]
[1749209001952,0.80175,2493.3,2493.2,1.2597]
[1749209002841,0.80185,2493.0,2492.9,3.2078]
[1749209003356,0.80185,2493.0,2492.9,4.00968]
[1749209003653,0.80181,2493.2,2493.0,0.80185]
[1749209003853,19.50281,2493.2,2493.1,0.80181]
[1749209004048,19.50281,2493.2,2493.0,2.15352]
[1749209004249,19.50281,2493.2,2493.1,0.80181]
[1749209004446,24.3163625,2493.5,2493.1,0.80181]
[1749209004651,5.73781,2493.2,2493.0,2.15353]
[1749209004850,0.80181,2493.1,2493.0,2.15353]
[1749209005045,4.936,2493.2,2493.0,2.15353]
[1749209005250,5.7378,2493.2,2493.0,2.15352]
[1749209005455,5.7378,2493.2,2493.0,2.15353]
[1749209005856,5.7378,2493.2,2493.1,0.80181]
[1749209006751,5.7378,2493.2,2493.0,2.15352]
[1749209007052,0.80181,2493.1,2493.0,1.3517]
[1749209007358,4.936,2493.2,2492.9,3.2078]
[1749209007359,0.80185,2493.0,2492.9,3.2078]
[1749209008361,0.80184,2493.1,2492.9,4.00968]
[1749209008554,3.73159047,2493.2,2492.9,4.00968]
[1749209008754,0.80185,2493.0,2492.9,4.00968]
[1749209010363,0.80185,2493.0,2492.9,3.2078]
[1749209010555,4.53166094,2493.2,2492.9,4.00968]
[1749209010754,0.80185,2493.0,2492.9,4.00968]
[1749209011249,2.52718094,2493.2,2492.9,3.2078]
[1749209011250,0.80183,2493.1,2492.9,3.2078]
[1749209011457,0.80183,2493.1,2493.0,0.80185]
[1749209012357,3.2078,2493.3,2493.0,0.80185]
[1749209012358,18.664,2493.2,2493.0,1.3831]
[1749209012660,4.937,2493.1,2493.0,2.18492]
[1749209013360,5.73881,2493.1,2493.0,2.18492]
[1749209013771,2.93074047,2493.1,2493.0,2.18492]
[1749209013955,3.73255047,2493.1,2493.0,2.18492]
[1749209014155,0.80185,2493.0,2492.9,3.2078]
[1749209014365,0.80198,2492.6,2492.5,2.8708]
[1749209014663,3.2078,2493.0,2492.5,4.07382]
[1749209014854,0.80189,2492.9,2492.8,0.80189]
[1749209015260,23.607,2493.0,2492.6,6.56313]
[1749209015561,0.80191,2492.8,2492.7,1.3504]
[1749209015762,0.80196,2492.7,2492.5,1.48768]
[1749209016062,25.61163,2493.0,2492.5,1.48768]
[1749209016063,0.80198,2492.6,2492.5,2.83808]
[1749209016254,0.80198,2492.6,2492.5,2.0361]
[1749209016459,0.80197,2492.7,2492.5,2.83809]
[1749209016659,0.80197,2492.7,2492.4,0.66112156]
[1749209016660,3.73275047,2492.6,2492.4,0.00602156]
[1749209016860,0.80201,2492.5,2492.4,0.00602156]
[1749209017059,2.07611,2492.5,2492.4,0.00602156]
[1749209017263,0.8022,2491.9,2491.8,2.6568]
[1749209017962,0.80219,2492.0,2491.8,3.45903]
[1749209018464,4.94302156,2492.1,2491.8,2.6568]
[1749209018660,0.80219,2492.0,2491.8,3.45902]
[1749209019061,0.8022,2491.9,2491.7,4.01608156]
[1749209019365,0.80223,2491.8,2491.7,3.21382156]
[1749209019565,4.94302156,2492.1,2491.7,3.21382156]
[1749209019766,3.73894203,2492.1,2491.7,3.21382156]
[1749209019966,3.73894203,2492.1,2492.0,0.80217]
[1749209020166,0.80818156,2492.1,2491.9,0.8022]
[1749209020368,0.80818156,2492.1,2492.0,1.2812]
[1749209020566,24.42218156,2492.1,2492.0,1.2812]
[1749209021566,0.8022,2491.9,2491.8,0.6906]
[1749209022762,23.614,2492.1,2491.8,1.49283]
[1749209022968,0.8022,2491.9,2491.8,1.9513]
[1749209023571,0.8022,2491.9,2491.8,2.75353]
[1749209023772,0.80218,2492.0,2491.8,1.9513]
[1749209024078,19.48218,2492.0,2491.8,2.75352]
[1749209024466,19.48218,2492.0,2491.8,1.9513]
[1749209024667,19.48218,2492.0,2491.9,1.362]
[1749209025066,0.80218,2492.0,2491.9,1.362]
[1749209025270,24.40118,2492.0,2491.9,1.362]
[1749209025469,24.40118,2492.0,2491.9,2.1642]
[1749209025766,24.40118,2492.0,2491.9,1.362]
[1749209025972,22.39492047,2492.0,2491.8,0.6906]
[1749209026170,0.8022,2491.9,2491.8,1.49283]
[1749209026473,23.19711047,2492.0,2491.8,2.85483]
[1749209026677,0.8022,2491.9,2491.8,2.85483]
[1749209027471,23.19711047,2492.0,2491.8,2.85483]